[Event "26th Hit Open-A 2022"]
[Site "Nova Gorica"]
[Date "2022.09.18"]
[Round "5.10"]
[White "Guid, Matej"]
[Black "Pavlovic, Milos"]
[Result "0-1"]
[ECO "C24"]
[WhiteElo "2292"]
[BlackElo "2468"]
[Annotator "ChessBase"]
[PlyCount "60"]
[EventDate "2022.09.16"]
[EventType "swiss"]
[EventCountry "SLO"]
[SourceTitle "playchess.com"]
[Source "ChessBase"]
[SourceQuality "1"]
[TimeControl "5400+30"]

1. e4 {[%emt 0:00:02]} e5 {[%emt 0:00:26]} 2. Bc4 {[%emt 0:00:06]} Nf6 {[%emt 0:00:09]} 3. d3 {[%emt 0:00:03]} c6 {[%emt 0:01:30]} 4. Nf3 {[%emt 0:00:05]} Be7 {[%emt 0:00:06]} 5. O-O {[%emt 0:00:15]} d6 {[%emt 0:00:02]} 6. Bb3 {[%emt 0:00:30]} O-O {[%emt 0:00:08]} 7. Re1 {[%emt 0:00:38]} Nbd7 {[%emt 0:00:09]} 8. c3 {[%emt 0:00:06]} Nc5 {[%emt 0:00:44]} 9. Bc2 {[%emt 0:00:06]} Bg4 {[%emt 0:00:05]} 10. h3 {[%emt 0:01:14]} Bxf3 {[%emt 0:04:01]} 11. Qxf3 {[%emt 0:00:09]} Ne6 {[%emt 0:00:03]} 12. Nd2 {[%emt 0:05:57]} Nd7 {[%emt 0:16:15]} 13. Nc4 {[%emt 0:05:19]} b5 {[%emt 0:19:06]} 14. Ne3 {[%emt 0:00:37]} Bg5 {[%emt 0:00:28]} 15. a4 {[%emt 0:02:01]} a6 {[%emt 0:11:16]} 16. axb5 {[%emt 0:00:44]} axb5 {[%emt 0:00:55]} 17. Rxa8 {[%emt 0:05:56]} Qxa8 {[%emt 0:00:08]} 18. Nf5 {[%emt 0:00:27]} Bxc1 {[%emt 0:00:28]} 19. Rxc1 {[%emt 0:00:10]} g6 {[%emt 0:00:48]} 20. Qg4 {[%emt 0:12:10]} h5 {[%emt 0:32:50]} 21. Qg3 {[%emt 0:28:03]} Nf4 {[%emt 0:00:52]} 22. Kf1 {[%emt 0:00:14]} Kh7 {[%emt 0:04:02]} 23. Ne3 {[%emt 0:00:55]} Qa2 {[%emt 0:00:17]} 24. Rb1 {[%emt 0:02:26]} Nc5 {[%emt 0:00:06]} 25. Nd1 {[%emt 0:00:53]} Nxe4 {[%emt 0:01:49]} 26. Qe3 {[%emt 0:02:21]} Nf6 {[%emt 0:00:25]} 27. g3 {[%emt 0:05:15]} N4d5 {[%emt 0:02:26]} 28. Qf3 {[%emt 0:00:26]} Kg7 {[%emt 0:00:29]} 29. Kg2 {[%emt 0:01:29]} b4 {[%emt 0:00:20]} 30. c4 {[%emt 0:04:42]} b3 {[%emt 0:00:53]} 0-1

[Event "26th Hit Open-A 2022"]
[Site "Nova Gorica"]
[Date "2022.09.18"]
[Round "5.11"]
[White "Zamar Kodelja, Jurij"]
[Black "Schreiner, Peter"]
[Result "0-1"]
[ECO "D87"]
[WhiteElo "2241"]
[BlackElo "2405"]
[Annotator "ChessBase"]
[PlyCount "104"]
[EventDate "2022.09.16"]
[EventType "swiss"]
[EventCountry "SLO"]
[SourceTitle "playchess.com"]
[Source "ChessBase"]
[SourceQuality "1"]
[TimeControl "5400+30"]

1. d4 {[%emt 0:03:50]} Nf6 {[%emt 0:00:25]} 2. c4 {[%emt 0:00:06]} g6 {[%emt 0:00:05]} 3. Nc3 {[%emt 0:00:31]} d5 {[%emt 0:00:15]} 4. cxd5 {[%emt 0:01:38]} Nxd5 {[%emt 0:00:07]} 5. e4 {[%emt 0:00:05]} Nxc3 {[%emt 0:00:07]} 6. bxc3 {[%emt 0:00:07]} Bg7 {[%emt 0:00:07]} 7. Bc4 {[%emt 0:01:12]} c5 {[%emt 0:00:11]} 8. Ne2 {[%emt 0:00:07]} Nc6 {[%emt 0:00:09]} 9. Be3 {[%emt 0:00:06]} O-O {[%emt 0:00:23]} 10. O-O {[%emt 0:00:06]} b6 {[%emt 0:08:42]} 11. Qd2 {[%emt 0:06:36]} Bb7 {[%emt 0:02:57]} 12. Rfd1 {[%emt 0:04:54]} e6 {[%emt 0:05:41]} 13. Bh6 {[%emt 0:01:51]} Qe7 {[%emt 0:03:33]} 14. Bg5 {[%emt 0:11:22]} Qd7 {[%emt 0:06:29]} 15. h4 {[%emt 0:03:39]} Rac8 {[%emt 0:06:13]} 16. Rac1 {[%emt 0:00:47]} Na5 {[%emt 0:11:16]} 17. Bd3 {[%emt 0:02:10]} e5 {[%emt 0:02:49]} 18. dxe5 {[%emt 0:05:00]} Bxe5 {[%emt 0:05:18]} 19. h5 {[%emt 0:02:03]} Rfe8 {[%emt 0:12:08]} 20. hxg6 {[%emt 0:07:40]} hxg6 {[%emt 0:00:58]} 21. Qe3 {[%emt 0:00:32]} Qe6 {[%emt 0:02:56]} 22. Bb5 {[%emt 0:08:31]} Bc6 {[%emt 0:06:36]} 23. Bxc6 {[%emt 0:01:24]} Nxc6 {[%emt 0:00:29]} 24. Rd5 {[%emt 0:01:37]} Bg7 {[%emt 0:00:56]} 25. Ng3 {[%emt 0:00:41]} Qxd5 {[%emt 0:06:35]} 26. exd5 {[%emt 0:00:29]} Rxe3 {[%emt 0:00:05]} 27. Bxe3 {[%emt 0:02:23]} Ne5 {[%emt 0:02:08]} 28. Ne2 {[%emt 0:03:15]} Nc4 {[%emt 0:02:31]} 29. Bf4 {[%emt 0:00:11]} Rd8 {[%emt 0:01:28]} 30. Rd1 {[%emt 0:00:14]} b5 {[%emt 0:04:12]} 31. d6 {[%emt 0:00:18]} Bf8 {[%emt 0:02:43]} 32. Rd5 {[%emt 0:02:17]} Bxd6 {[%emt 0:01:17]} 33. Bxd6 {[%emt 0:02:36]} Rxd6 {[%emt 0:00:07]} 34. Rxc5 {[%emt 0:00:05]} Rd1+ {[%emt 0:00:38]} 35. Kh2 {[%emt 0:00:06]} Rd2 {[%emt 0:00:14]} 36. Nd4 {[%emt 0:00:29]} Rxf2 {[%emt 0:01:21]} 37. Nxb5 {[%emt 0:00:06]} Ne3 {[%emt 0:00:44]} 38. Nxa7 {[%emt 0:00:47]} Rxg2+ {[%emt 0:01:14]} 39. Kh3 {[%emt 0:00:03]} Rxa2 {[%emt 0:01:09]} 40. Nb5 {[%emt 0:00:06]} Kg7 {[%emt 0:02:11]} 41. Rc7 {[%emt 0:00:15]} Nf5 {[%emt 0:00:39]} 42. c4 {[%emt 0:00:15]} g5 {[%emt 0:00:43]} 43. Rc6 {[%emt 0:01:01]} Ne3 {[%emt 0:01:38]} 44. Nd6 {[%emt 0:00:47]} f5 {[%emt 0:00:55]} 45. Nxf5+ {[%emt 0:00:25]} Nxf5 {[%emt 0:00:23]} 46. Kg4 {[%emt 0:00:05]} Ne7 {[%emt 0:00:28]} 47. Rb6 {[%emt 0:01:33]} Ra5 {[%emt 0:00:48]} 48. Rd6 {[%emt 0:00:47]} Ng8 {[%emt 0:00:33]} 49. Rc6 {[%emt 0:00:27]} Nf6+ {[%emt 0:00:12]} 50. Kg3 {[%emt 0:00:06]} Kg6 {[%emt 0:00:14]} 51. Rb6 {[%emt 0:00:26]} Ra3+ {[%emt 0:00:30]} 52. Kg2 {[%emt 0:00:07]} Rc3 {[%emt 0:00:07]} 0-1

[Event "26th Hit Open-A 2022"]
[Site "Nova Gorica"]
[Date "2022.09.18"]
[Round "5.12"]
[White "Fercec, Nenad"]
[Black "Karlusic, Luka"]
[Result "1-0"]
[ECO "B43"]
[WhiteElo "2403"]
[BlackElo "2215"]
[Annotator "ChessBase"]
[PlyCount "73"]
[EventDate "2022.09.16"]
[EventType "swiss"]
[EventCountry "SLO"]
[SourceTitle "playchess.com"]
[Source "ChessBase"]
[SourceQuality "1"]
[TimeControl "5400+30"]

1. e4 {[%emt 0:00:24]} c5 {[%emt 0:00:17]} 2. Nf3 {[%emt 0:00:07]} e6 {[%emt 0:00:10]} 3. d4 {[%emt 0:00:07]} cxd4 {[%emt 0:00:14]} 4. Nxd4 {[%emt 0:00:08]} a6 {[%emt 0:00:24]} 5. Nc3 {[%emt 0:00:16]} Qc7 {[%emt 0:00:18]} 6. Bd3 {[%emt 0:00:17]} Nf6 {[%emt 0:00:43]} 7. Qe2 {[%emt 0:00:27]} Bd6 {[%emt 0:02:39]} 8. g4 {[%emt 0:03:11]} Be5 {[%emt 0:24:44]} 9. Be3 {[%emt 0:00:19]} h5 {[%emt 0:03:01]} 10. gxh5 {[%emt 0:03:02]} Nxh5 {[%emt 0:01:32]} 11. O-O-O {[%emt 0:00:26]} b5 {[%emt 0:03:58]} 12. Kb1 {[%emt 0:00:32]} Bb7 {[%emt 0:05:38]} 13. Qg4 {[%emt 0:01:15]} Nc6 {[%emt 0:11:19]} 14. Nde2 {[%emt 0:04:02]} O-O-O {[%emt 0:10:39]} 15. f4 {[%emt 0:00:28]} Bxc3 {[%emt 0:04:28]} 16. Nxc3 {[%emt 0:00:23]} Ne7 {[%emt 0:04:09]} 17. Rhf1 {[%emt 0:13:32]} d5 {[%emt 0:03:39]} 18. Qg1 {[%emt 0:00:47]} Rd6 {[%emt 0:05:48]} 19. Bc5 {[%emt 0:03:32]} Rc6 {[%emt 0:01:05]} 20. Bxe7 {[%emt 0:00:15]} Qxe7 {[%emt 0:00:24]} 21. exd5 {[%emt 0:00:11]} Rxc3 {[%emt 0:00:22]} 22. bxc3 {[%emt 0:01:53]} Bxd5 {[%emt 0:00:11]} 23. Kb2 {[%emt 0:00:40]} Kb7 {[%emt 0:03:27]} 24. f5 {[%emt 0:03:00]} Rc8 {[%emt 0:02:58]} 25. fxe6 {[%emt 0:00:23]} fxe6 {[%emt 0:00:11]} 26. Qd4 {[%emt 0:01:09]} Nf6 {[%emt 0:00:55]} 27. Rde1 {[%emt 0:00:40]} Qc7 {[%emt 0:01:58]} 28. Rg1 {[%emt 0:00:48]} Ka8 {[%emt 0:02:10]} 29. a3 {[%emt 0:04:48]} Re8 {[%emt 0:04:21]} 30. Qe5 {[%emt 0:04:10]} Qb7 {[%emt 0:00:21]} 31. h4 {[%emt 0:02:00]} Re7 {[%emt 0:00:07]} 32. h5 {[%emt 0:03:33]} Nd7 {[%emt 0:00:12]} 33. Qxd5 {[%emt 0:01:29]} exd5 {[%emt 0:00:12]} 34. Rxe7 {[%emt 0:00:06]} Qc8 {[%emt 0:01:44]} 35. Rgxg7 {[%emt 0:04:09]} Nc5 {[%emt 0:01:28]} 36. Bh7 {[%emt 0:00:52]} Na4+ {[%emt 0:00:08]} 37. Kc1 {[%emt 0:00:03]} 1-0

[Event "26th Hit Open-A 2022"]
[Site "Nova Gorica"]
[Date "2022.09.18"]
[Round "5.13"]
[White "Zubova, Mariya"]
[Black "Willow, Jonah B"]
[Result "0-1"]
[ECO "C72"]
[WhiteElo "2214"]
[BlackElo "2385"]
[Annotator "ChessBase"]
[PlyCount "82"]
[EventDate "2022.09.16"]
[EventType "swiss"]
[EventCountry "SLO"]
[SourceTitle "playchess.com"]
[Source "ChessBase"]
[SourceQuality "1"]
[TimeControl "5400+30"]

1. e4 {[%emt 0:00:29]} e5 {[%emt 0:00:06]} 2. Nf3 {[%emt 0:00:19]} Nc6 {[%emt 0:00:05]} 3. Bb5 {[%emt 0:00:20]} a6 {[%emt 0:00:08]} 4. Ba4 {[%emt 0:00:09]} d6 {[%emt 0:00:13]} 5. c3 {[%emt 0:00:22]} Bd7 {[%emt 0:01:11]} 6. O-O {[%emt 0:00:30]} g5 {[%emt 0:00:40]} 7. d4 {[%emt 0:01:44]} g4 {[%emt 0:00:20]} 8. Ne1 {[%emt 0:01:19]} h5 {[%emt 0:00:12]} 9. f4 {[%emt 0:08:04]} exd4 {[%emt 0:00:07]} 10. cxd4 {[%emt 0:01:20]} d5 {[%emt 0:00:04]} 11. e5 {[%emt 0:03:49]} Nh6 {[%emt 0:00:22]} 12. Nc3 {[%emt 0:00:46]} Ne7 {[%emt 0:02:11]} 13. f5 {[%emt 0:10:10]} Nhxf5 {[%emt 0:02:03]} 14. Bg5 {[%emt 0:02:38]} c6 {[%emt 0:02:06]} 15. Bc2 {[%emt 0:11:54]} Qb6 {[%emt 0:07:15]} 16. Bxe7 {[%emt 0:05:39]} Nxe7 {[%emt 0:07:57]} 17. Na4 {[%emt 0:00:22]} Qc7 {[%emt 0:01:46]} 18. Nc5 {[%emt 0:01:26]} Bc8 {[%emt 0:12:42]} 19. Qe2 {[%emt 0:03:56]} Rh6 {[%emt 0:09:12]} 20. Qf2 {[%emt 0:03:13]} Ng8 {[%emt 0:00:14]} 21. Ned3 {[%emt 0:04:29]} b6 {[%emt 0:09:42]} 22. Na4 {[%emt 0:02:43]} Be6 {[%emt 0:07:58]} 23. Nf4 {[%emt 0:00:30]} b5 {[%emt 0:11:00]} 24. Nb6 {[%emt 0:12:05]} Rb8 {[%emt 0:00:57]} 25. Nxe6 {[%emt 0:00:47]} Rxe6 {[%emt 0:00:02]} 26. Bf5 {[%emt 0:00:13]} Qe7 {[%emt 0:02:04]} 27. Bxe6 {[%emt 0:05:15]} Qxe6 {[%emt 0:00:04]} 28. Nd7 {[%emt 0:06:14]} Kxd7 {[%emt 0:00:17]} 29. Qxf7+ {[%emt 0:00:06]} Qxf7 {[%emt 0:07:04]} 30. Rxf7+ {[%emt 0:00:05]} Ke6 {[%emt 0:00:18]} 31. Raf1 {[%emt 0:00:13]} Be7 {[%emt 0:04:10]} 32. Rh7 {[%emt 0:00:13]} c5 {[%emt 0:00:24]} 33. dxc5 {[%emt 0:01:12]} Bxc5+ {[%emt 0:00:06]} 34. Kh1 {[%emt 0:00:01]} d4 {[%emt 0:01:59]} 35. Rxh5 {[%emt 0:00:22]} d3 {[%emt 0:00:19]} 36. Rd1 {[%emt 0:02:02]} Rd8 {[%emt 0:00:10]} 37. Rg5 {[%emt 0:02:25]} d2 {[%emt 0:01:39]} 38. Rg6+ {[%emt 0:02:27]} Kf5 {[%emt 0:03:25]} 39. Rxa6 {[%emt 0:02:37]} Ne7 {[%emt 0:00:17]} 40. a4 {[%emt 0:00:43]} Kxe5 {[%emt 0:02:03]} 41. axb5 {[%emt 0:00:30]} Nf5 {[%emt 0:00:02]} 0-1

[Event "26th Hit Open-A 2022"]
[Site "Nova Gorica"]
[Date "2022.09.18"]
[Round "5.14"]
[White "Gregoric, Andraz"]
[Black "Thavandiran, Shiyam"]
[Result "1/2-1/2"]
[ECO "C07"]
[WhiteElo "2182"]
[BlackElo "2363"]
[Annotator "ChessBase"]
[PlyCount "123"]
[EventDate "2022.09.16"]
[EventType "swiss"]
[EventCountry "SLO"]
[SourceTitle "playchess.com"]
[Source "ChessBase"]
[SourceQuality "1"]
[TimeControl "5400+30"]

1. e4 {[%emt 0:02:55]} e6 {[%emt 0:00:03]} 2. d4 {[%emt 0:00:11]} d5 {[%emt 0:00:07]} 3. Nd2 {[%emt 0:00:30]} c5 {[%emt 0:00:21]} 4. exd5 {[%emt 0:00:14]} Qxd5 {[%emt 0:00:07]} 5. Ngf3 {[%emt 0:00:03]} cxd4 {[%emt 0:00:08]} 6. Bc4 {[%emt 0:00:02]} Qd6 {[%emt 0:00:09]} 7. O-O {[%emt 0:00:06]} Nf6 {[%emt 0:00:05]} 8. Nb3 {[%emt 0:00:19]} Nc6 {[%emt 0:00:07]} 9. Nbxd4 {[%emt 0:00:04]} Nxd4 {[%emt 0:00:07]} 10. Nxd4 {[%emt 0:00:03]} Be7 {[%emt 0:00:10]} 11. b3 {[%emt 0:00:32]} a6 {[%emt 0:52:58]} 12. a4 {[%emt 0:00:17]} O-O {[%emt 0:07:21]} 13. Bb2 {[%emt 0:02:28]} Qf4 {[%emt 0:02:28]} 14. Qf3 {[%emt 0:09:03]} Qxf3 {[%emt 0:02:20]} 15. Nxf3 {[%emt 0:00:05]} b6 {[%emt 0:00:13]} 16. Bd4 {[%emt 0:02:15]} Bd8 {[%emt 0:05:31]} 17. Be2 {[%emt 0:08:38]} Bb7 {[%emt 0:05:34]} 18. c4 {[%emt 0:07:01]} a5 {[%emt 0:03:59]} 19. Rfb1 {[%emt 0:03:53]} Be4 {[%emt 0:01:00]} 20. Rb2 {[%emt 0:00:31]} Bc7 {[%emt 0:07:07]} 21. b4 {[%emt 0:16:06]} axb4 {[%emt 0:00:26]} 22. Rxb4 {[%emt 0:00:46]} Nd7 {[%emt 0:00:17]} 23. Nd2 {[%emt 0:05:17]} Bc6 {[%emt 0:03:07]} 24. Bf3 {[%emt 0:00:18]} Bxf3 {[%emt 0:01:55]} 25. gxf3 {[%emt 0:00:35]} Rfc8 {[%emt 0:01:23]} 26. Rb5 {[%emt 0:05:24]} Bd8 {[%emt 0:04:15]} 27. Kf1 {[%emt 0:03:00]} Ra6 {[%emt 0:00:13]} 28. Be3 {[%emt 0:02:08]} Kf8 {[%emt 0:02:17]} 29. Rb3 {[%emt 0:01:43]} Rca8 {[%emt 0:00:13]} 30. Rba3 {[%emt 0:00:36]} Be7 {[%emt 0:00:23]} 31. R3a2 {[%emt 0:00:18]} Nc5 {[%emt 0:00:51]} 32. Bxc5 {[%emt 0:00:49]} Bxc5 {[%emt 0:00:14]} 33. Nb3 {[%emt 0:00:46]} Bd6 {[%emt 0:00:12]} 34. h3 {[%emt 0:00:15]} Be5 {[%emt 0:01:15]} 35. Re1 {[%emt 0:00:08]} Bc3 {[%emt 0:00:18]} 36. Rc1 {[%emt 0:00:10]} Bb4 {[%emt 0:00:15]} 37. c5 {[%emt 0:01:56]} bxc5 {[%emt 0:00:19]} 38. Nxc5 {[%emt 0:00:21]} Bxc5 {[%emt 0:00:46]} 39. Rxc5 {[%emt 0:00:19]} Rxa4 {[%emt 0:00:05]} 40. Rxa4 {[%emt 0:00:05]} Rxa4 {[%emt 0:00:05]} 41. Rc8+ {[%emt 0:00:02]} Ke7 {[%emt 0:00:06]} 42. Rc5 {[%emt 0:00:42]} Rd4 {[%emt 0:00:33]} 43. Kg2 {[%emt 0:00:07]} Kf6 {[%emt 0:00:17]} 44. Rb5 {[%emt 0:00:28]} Rd7 {[%emt 0:00:34]} 45. Ra5 {[%emt 0:00:28]} e5 {[%emt 0:00:41]} 46. Ra4 {[%emt 0:00:12]} Kf5 {[%emt 0:00:14]} 47. Rb4 {[%emt 0:00:05]} f6 {[%emt 0:00:07]} 48. Ra4 {[%emt 0:00:15]} h5 {[%emt 0:00:20]} 49. Rb4 {[%emt 0:00:28]} Rd6 {[%emt 0:00:38]} 50. Ra4 {[%emt 0:00:53]} Rc6 {[%emt 0:02:01]} 51. Rb4 {[%emt 0:01:38]} Rc3 {[%emt 0:00:47]} 52. Ra4 {[%emt 0:00:00]} Rd3 {[%emt 0:00:21]} 53. Rb4 {[%emt 0:00:01]} Rd4 {[%emt 0:00:05]} 54. Rb3 {[%emt 0:01:17]} Kf4 {[%emt 0:00:21]} 55. Ra3 {[%emt 0:01:52]} g5 {[%emt 0:01:09]} 56. Rb3 {[%emt 0:01:13]} f5 {[%emt 0:00:07]} 57. Ra3 {[%emt 0:00:04]} Rb4 {[%emt 0:00:15]} 58. Rc3 {[%emt 0:00:16]} Ra4 {[%emt 0:00:05]} 59. Rb3 {[%emt 0:00:04]} Rd4 {[%emt 0:00:25]} 60. Ra3 {[%emt 0:00:14]} Rd2 {[%emt 0:01:53]} 61. Ra4+ {[%emt 0:01:22]} Rd4 {[%emt 0:00:33]} 62. Ra3 {[%emt 0:01:00]} 1/2-1/2

[Event "26th Hit Open-A 2022"]
[Site "Nova Gorica"]
[Date "2022.09.18"]
[Round "5.15"]
[White "Tisaj, Domen"]
[Black "Devnani Kush"]
[Result "1-0"]
[ECO "B50"]
[WhiteElo "2325"]
[BlackElo "2095"]
[Annotator "ChessBase"]
[PlyCount "69"]
[EventDate "2022.09.16"]
[EventType "swiss"]
[EventCountry "SLO"]
[SourceTitle "playchess.com"]
[Source "ChessBase"]
[SourceQuality "1"]
[TimeControl "5400+30"]

1. e4 {[%emt 0:00:03]} c5 {[%emt 0:00:07]} 2. Nf3 {[%emt 0:00:05]} d6 {[%emt 0:00:07]} 3. Bc4 {[%emt 0:01:52]} Nf6 {[%emt 0:02:38]} 4. d3 {[%emt 0:00:10]} Nc6 {[%emt 0:05:51]} 5. O-O {[%emt 0:00:58]} e6 {[%emt 0:09:25]} 6. Qe2 {[%emt 0:03:07]} Be7 {[%emt 0:02:02]} 7. c3 {[%emt 0:00:23]} O-O {[%emt 0:00:37]} 8. Bb3 {[%emt 0:01:12]} e5 {[%emt 0:18:45]} 9. Nbd2 {[%emt 0:05:39]} h6 {[%emt 0:11:37]} 10. Re1 {[%emt 0:02:49]} Be6 {[%emt 0:00:59]} 11. Nf1 {[%emt 0:01:25]} Re8 {[%emt 0:02:25]} 12. Ng3 {[%emt 0:01:47]} Nd7 {[%emt 0:04:11]} 13. Be3 {[%emt 0:01:35]} Nf8 {[%emt 0:02:09]} 14. Bc2 {[%emt 0:02:06]} d5 {[%emt 0:08:41]} 15. Ba4 {[%emt 0:05:26]} d4 {[%emt 0:03:42]} 16. Bd2 {[%emt 0:00:26]} Qc7 {[%emt 0:02:35]} 17. Nf5 {[%emt 0:06:50]} Rab8 {[%emt 0:08:05]} 18. Rac1 {[%emt 0:12:12]} b5 {[%emt 0:02:15]} 19. Bb3 {[%emt 0:00:34]} Qd7 {[%emt 0:02:49]} 20. cxd4 {[%emt 0:05:25]} Bxf5 {[%emt 0:06:49]} 21. exf5 {[%emt 0:05:02]} exd4 {[%emt 0:00:23]} 22. g4 {[%emt 0:05:46]} Bd6 {[%emt 0:01:00]} 23. Qf1 {[%emt 0:00:39]} Rxe1 {[%emt 0:00:11]} 24. Rxe1 {[%emt 0:00:18]} Re8 {[%emt 0:00:50]} 25. Rc1 {[%emt 0:01:41]} Qe7 {[%emt 0:02:04]} 26. Qg2 {[%emt 0:06:15]} Ne5 {[%emt 0:01:08]} 27. Re1 {[%emt 0:01:49]} Nxf3+ {[%emt 0:01:03]} 28. Qxf3 {[%emt 0:00:08]} Qd7 {[%emt 0:00:05]} 29. Rxe8 {[%emt 0:02:22]} Qxe8 {[%emt 0:00:01]} 30. f6 {[%emt 0:01:59]} g5 {[%emt 0:01:10]} 31. Qh3 {[%emt 0:06:27]} Ne6 {[%emt 0:01:43]} 32. Qxh6 {[%emt 0:00:43]} Bf8 {[%emt 0:00:01]} 33. Qh5 {[%emt 0:00:36]} c4 {[%emt 0:00:16]} 34. dxc4 {[%emt 0:00:17]} Qa8 {[%emt 0:00:54]} 35. Bc2 {[%emt 0:00:42]} 1-0

[Event "26th Hit Open-A 2022"]
[Site "Nova Gorica"]
[Date "2022.09.18"]
[Round "5.16"]
[White "Lodici, Lorenzo"]
[Black "Gschiel, Alexander"]
[Result "1/2-1/2"]
[ECO "D32"]
[WhiteElo "2559"]
[BlackElo "2196"]
[Annotator "ChessBase"]
[PlyCount "104"]
[EventDate "2022.09.16"]
[EventType "swiss"]
[EventCountry "SLO"]
[SourceTitle "playchess.com"]
[Source "ChessBase"]
[SourceQuality "1"]
[TimeControl "5400+30"]

1. Nf3 {[%emt 0:10:27]} d5 {[%emt 0:00:14]} 2. e3 {[%emt 0:00:05]} Nf6 {[%emt 0:00:13]} 3. b3 {[%emt 0:00:05]} e6 {[%emt 0:00:48]} 4. Bb2 {[%emt 0:00:06]} c5 {[%emt 0:00:17]} 5. c4 {[%emt 0:00:07]} Nc6 {[%emt 0:00:43]} 6. cxd5 {[%emt 0:00:06]} exd5 {[%emt 0:00:03]} 7. Nc3 {[%emt 0:00:57]} Be7 {[%emt 0:03:28]} 8. d4 {[%emt 0:05:22]} O-O {[%emt 0:01:41]} 9. Be2 {[%emt 0:00:04]} Be6 {[%emt 0:02:04]} 10. O-O {[%emt 0:00:32]} Rc8 {[%emt 0:01:45]} 11. Rc1 {[%emt 0:00:43]} Ne4 {[%emt 0:05:54]} 12. dxc5 {[%emt 0:07:05]} Nxc5 {[%emt 0:01:30]} 13. Qc2 {[%emt 0:06:31]} Qd7 {[%emt 0:06:53]} 14. Rfd1 {[%emt 0:04:51]} Rfd8 {[%emt 0:03:40]} 15. Qb1 {[%emt 0:03:12]} Qe8 {[%emt 0:15:45]} 16. Qa1 {[%emt 0:03:08]} Qf8 {[%emt 0:00:19]} 17. Nb5 {[%emt 0:03:20]} Ne4 {[%emt 0:04:39]} 18. Nfd4 {[%emt 0:05:54]} Nxd4 {[%emt 0:09:57]} 19. Nxd4 {[%emt 0:02:35]} Ba3 {[%emt 0:03:17]} 20. Bxa3 {[%emt 0:02:34]} Qxa3 {[%emt 0:00:03]} 21. Nxe6 {[%emt 0:00:08]} fxe6 {[%emt 0:00:18]} 22. Bg4 {[%emt 0:00:21]} Qd6 {[%emt 0:11:17]} 23. Qd4 {[%emt 0:04:44]} Nf6 {[%emt 0:00:08]} 24. Bh3 {[%emt 0:00:45]} b6 {[%emt 0:00:33]} 25. g3 {[%emt 0:02:30]} Kf7 {[%emt 0:01:52]} 26. Rxc8 {[%emt 0:01:34]} Rxc8 {[%emt 0:00:02]} 27. e4 {[%emt 0:00:36]} Qc5 {[%emt 0:03:07]} 28. Qe5 {[%emt 0:03:17]} Re8 {[%emt 0:01:31]} 29. exd5 {[%emt 0:00:17]} exd5 {[%emt 0:00:02]} 30. Qb2 {[%emt 0:01:15]} Qb4 {[%emt 0:01:22]} 31. Bf1 {[%emt 0:06:16]} Re1 {[%emt 0:02:10]} 32. Qd2 {[%emt 0:00:13]} Qxd2 {[%emt 0:00:48]} 33. Rxd2 {[%emt 0:00:08]} Ke6 {[%emt 0:00:36]} 34. f3 {[%emt 0:01:07]} Kd6 {[%emt 0:03:05]} 35. Kf2 {[%emt 0:00:06]} Rc1 {[%emt 0:00:11]} 36. h4 {[%emt 0:01:04]} Kc5 {[%emt 0:02:20]} 37. g4 {[%emt 0:00:21]} h6 {[%emt 0:01:16]} 38. g5 {[%emt 0:00:49]} Nh5 {[%emt 0:00:37]} 39. Bh3 {[%emt 0:00:41]} Nf4 {[%emt 0:02:20]} 40. Bf5 {[%emt 0:01:06]} d4 {[%emt 0:01:02]} 41. gxh6 {[%emt 0:13:00]} gxh6 {[%emt 0:00:04]} 42. Kg3 {[%emt 0:00:06]} Nd5 {[%emt 0:01:07]} 43. Kg4 {[%emt 0:00:06]} Ne3+ {[%emt 0:01:31]} 44. Kf4 {[%emt 0:00:16]} Rh1 {[%emt 0:00:07]} 45. Be4 {[%emt 0:01:07]} Rxh4+ {[%emt 0:00:22]} 46. Ke5 {[%emt 0:00:02]} Rh1 {[%emt 0:02:40]} 47. f4 {[%emt 0:05:51]} Ng4+ {[%emt 0:00:58]} 48. Kf5 {[%emt 0:00:15]} Ne3+ {[%emt 0:00:04]} 49. Kf6 {[%emt 0:03:41]} Rf1 {[%emt 0:03:29]} 50. Ke5 {[%emt 0:02:43]} Ng4+ {[%emt 0:00:39]} 51. Kf5 {[%emt 0:00:05]} Ne3+ {[%emt 0:00:05]} 52. Ke5 {[%emt 0:00:03]} Ng4+ {[%emt 0:00:04]} 1/2-1/2